fUSD/lending_fUSD_20250514
["ID","MTS","AMOUNT","RATE_DAILY","PERIOD"]
[361007361,1747199436810,-400.0,0.00010958,2]
[361007362,1747199436821,-400.0,0.00010958,2]
[361007363,1747199436832,-476.4,0.00010958,2]
[361007364,1747199436842,-400.0,0.00010958,2]
[361007365,1747199436853,-400.0,0.00010958,2]
[361007366,1747199436863,-400.0,0.00010958,2]
[361007367,1747199436875,-159.833852,0.00010958,2]
[361007368,1747199436885,-400.0,0.00010958,2]
[361007369,1747199436895,-161.839733,0.00010958,2]
[361007370,1747199436907,-410.95094821,0.00010958,2]
[361007371,1747199436916,-990.18,0.00010958,2]
[361007372,1747199436925,-412.61302467,0.00010958,2]
[361007373,1747199436935,-322.85061853,0.00010958,2]
[361007374,1747199436945,-400.0,0.00010958,2]
[361007375,1747199436955,-400.0,0.00010958,2]
[361007376,1747199436965,-400.0,0.00010958,2]
[361007377,1747199436974,-1045.2,0.00010958,2]
[361007378,1747199436985,-400.0,0.00010958,2]
[361007379,1747199436994,-1792.652878,0.00010958,2]
[361007380,1747199437004,-400.0,0.00010958,2]
[361007381,1747199437014,-1014.08,0.00010958,2]
[361007382,1747199437025,-400.0,0.00010958,2]
[361007383,1747199437034,-7236.89817,0.00010958,2]
[361007384,1747199437043,-400.0,0.00010958,2]
[361007385,1747199437052,-400.0,0.00010958,2]
[361007386,1747199437062,-402.2575922,0.00010958,2]
[361007387,1747199437071,-400.0,0.00010958,2]
[361007388,1747199437080,-400.0,0.00010958,2]
[361007389,1747199437089,-249.84528397,0.00010958,2]
[361007390,1747199437098,-868.63,0.00010958,2]
[361007391,1747199437107,-400.0,0.00010958,2]
[361007392,1747199437116,-319.16756535,0.00010958,2]
[361007393,1747199437126,-500.0,0.00010958,2]
[361007394,1747199437135,-400.0,0.00010958,2]
[361007395,1747199437144,-421.14,0.00010958,2]
[361007396,1747199437154,-400.0,0.00010958,2]
[361007397,1747199437163,-400.0,0.00010958,2]
[361007398,1747199437173,-404.79067077,0.00010958,2]
[361007399,1747199437182,-400.0,0.00010958,2]
[361007400,1747199437191,-400.0,0.00010958,2]
[361007401,1747199437201,-793.73,0.00010958,2]
[361007402,1747199437210,-400.0,0.00010958,2]
[361007403,1747199437219,-689.52,0.00010958,2]
[361007404,1747199437228,-400.0,0.00010958,2]
[361007405,1747199437238,-400.0,0.00010958,2]
[361007406,1747199437247,-506.82222182,0.00010958,2]
[361007407,1747199437256,-400.0,0.00010958,2]
[361007408,1747199437268,-400.0,0.00010958,2]
[361007409,1747199437278,-521.29493465,0.00010958,2]
[361007410,1747199437287,-400.0,0.00010958,2]
[361007411,1747199437296,-154.155616,0.00010958,2]
[361007412,1747199437306,-400.0,0.00010958,2]
[361007413,1747199437315,-400.0,0.00010958,2]
[361007414,1747199437324,-400.0,0.00010958,2]
[361007415,1747199437334,-400.0,0.00010958,2]
[361007416,1747199437344,-332.82749601,0.00010958,2]
[361007417,1747199437354,-400.0,0.00010958,2]
[361007418,1747199437363,-400.0,0.00010958,2]
[361007419,1747199437372,-1094.9,0.00010958,2]
[361007420,1747199437382,-400.0,0.00010958,2]
[361007421,1747199437392,-400.0,0.00010958,2]
[361007422,1747199437401,-1156.25,0.00010958,2]
[361007423,1747199437410,-400.0,0.00010958,2]
[361007424,1747199437419,-400.0,0.00010958,2]
[361007425,1747199437428,-400.0,0.00010958,2]
[361007426,1747199437438,-583.29,0.00010958,2]
[361007427,1747199437447,-400.0,0.00010958,2]
[361007428,1747199437457,-867.29,0.00010958,2]
[361007429,1747199437466,-407.38,0.00010958,2]
[361007430,1747199437475,-400.0,0.00010958,2]
[361007431,1747199437484,-271.31678994,0.00010958,2]
[361007432,1747199437504,-415.96,0.00010958,2]
[361007433,1747199437521,-400.0,0.00010958,2]
[361007434,1747199437530,-400.0,0.00010958,2]
[361007435,1747199437539,-434.83,0.00010958,2]
[361007436,1747199437549,-400.0,0.00010958,2]
[361007437,1747199437558,-400.0,0.00010958,2]
[361007438,1747199437567,-400.0,0.00010958,2]
[361007439,1747199437576,-400.0,0.00010958,2]
[361007440,1747199437586,-400.0,0.00010958,2]
[361007441,1747199437595,-432.19,0.00010958,2]
[361007442,1747199437604,-414.98648447,0.00010958,2]
[361007443,1747199437614,-400.0,0.00010958,2]
[361007444,1747199437625,-400.0,0.00010958,2]
[361007445,1747199437634,-400.0,0.00010958,2]
[361007446,1747199437643,-400.0,0.00010958,2]
[361007447,1747199437652,-400.0,0.00010958,2]
[361007448,1747199437663,-400.0,0.00010958,2]
[361007449,1747199437672,-400.0,0.00010958,2]
[361007450,1747199437681,-1612.58,0.00010958,2]
[361007451,1747199437692,-400.0,0.00010958,2]
[361007452,1747199437703,-400.0,0.00010958,2]
[361007453,1747199437712,-400.0,0.00010958,2]
[361007454,1747199437722,-850.12,0.00010958,2]
[361007455,1747199437731,-596.96,0.00010958,2]
[361007456,1747199437740,-400.0,0.00010958,2]
[361007457,1747199437749,-400.0,0.00010958,2]
[361007458,1747199437758,-400.0,0.00010958,2]
[361007459,1747199437767,-444.40520912,0.00010958,2]
[361007460,1747199437777,-400.0,0.00010958,2]
[361007461,1747199437786,-400.0,0.00010958,2]
[361007462,1747199437795,-927.11,0.00010958,2]
[361007463,1747199437804,-405.62802138,0.00010958,2]
[361007464,1747199437813,-409.85187531,0.00010958,2]
[361007465,1747199437822,-786.84,0.00010958,2]
[361007466,1747199437832,-1408.97,0.00010958,2]
[361007467,1747199437842,-400.0,0.00010958,2]
[361007468,1747199437851,-400.0,0.00010958,2]
[361007469,1747199437860,-400.0,0.00010958,2]
[361007470,1747199437870,-350.38803559,0.00010958,2]
[361007471,1747199437879,-735.66,0.00010958,2]
[361007472,1747199437889,-400.0,0.00010958,2]
[361007473,1747199437898,-400.0,0.00010958,2]
[361007474,1747199437907,-400.0,0.00010958,2]
[361007475,1747199437916,-400.0,0.00010958,2]
[361007476,1747199437925,-414.11621967,0.00010958,2]
[361007477,1747199437935,-607.67,0.00010958,2]
[361007478,1747199437944,-1356.89,0.00010958,2]
[361007479,1747199437953,-400.0,0.00010958,2]
[361007480,1747199437962,-500.0,0.00010958,2]
[361007481,1747199437971,-1405.03,0.00010958,2]
[361007482,1747199437981,-400.0,0.00010958,2]
[361007483,1747199437990,-3275.42,0.00010958,2]
[361007484,1747199438000,-400.0,0.00010958,2]
[361007485,1747199438010,-400.0,0.00010958,2]
[361007486,1747199438019,-839.08,0.00010958,2]
[361007488,1747199438028,-400.0,0.00010958,2]
[361007491,1747199438039,-400.0,0.00010958,2]
[361007492,1747199438048,-400.0,0.00010958,2]
[361007493,1747199438057,-404.71577477,0.00010958,2]
[361007494,1747199438066,-1041.61,0.00010958,2]
[361007495,1747199438075,-400.0,0.00010958,2]
[361007496,1747199438083,-529.49,0.00010958,2]
[361007497,1747199438092,-400.0,0.00010958,2]
[361007498,1747199438102,-400.0,0.00010958,2]
[361007499,1747199438111,-400.0,0.00010958,2]
[361007500,1747199438120,-400.0,0.00010958,2]
[361007501,1747199438129,-400.0,0.00010958,2]
[361007502,1747199438138,-400.0,0.00010958,2]
[361007503,1747199438148,-648.76,0.00010958,2]
[361007504,1747199438157,-422.29217483,0.00010958,2]
[361007505,1747199438167,-400.0,0.00010958,2]
[361007506,1747199438176,-400.0,0.00010958,2]
[361007507,1747199438185,-400.0,0.00010958,2]
[361007508,1747199438195,-596.72,0.00010958,2]
[361007509,1747199438204,-1580.03,0.00010958,2]
[361007510,1747199438213,-412.97124452,0.00010958,2]
[361007511,1747199438222,-413.75,0.00010958,2]
[361007512,1747199438231,-522.37,0.00010958,2]
[361007513,1747199438241,-416.40351943,0.00010958,2]
[361007514,1747199438250,-408.90697305,0.00010958,2]
[361007515,1747199438259,-571.61,0.00010958,2]
[361007516,1747199438269,-1358.36,0.00010958,2]
[361007517,1747199438279,-524.1,0.00010958,2]
[361007518,1747199438288,-400.0,0.00010958,2]
[361007519,1747199438297,-927.81,0.00010958,2]
[361007520,1747199438306,-1823.27,0.00010958,2]
[361007521,1747199438316,-623.14,0.00010958,2]
[361007522,1747199438325,-2714.66,0.00010958,2]
[361007523,1747199438334,-467.12051459,0.00010958,2]
[361007524,1747199438343,-400.0,0.00010958,2]
[361007525,1747199438353,-574.61,0.00010958,2]
[361007526,1747199438362,-513.45,0.00010958,2]
[361007527,1747199438371,-400.0,0.00010958,2]
[361007528,1747199438380,-400.0,0.00010958,2]
[361007529,1747199438389,-400.0,0.00010958,2]
[361007530,1747199438398,-400.0,0.00010958,2]
[361007531,1747199438407,-754.45,0.00010958,2]
[361007532,1747199438417,-401.70968781,0.00010958,2]
[361007533,1747199438427,-553.1,0.00010958,2]
[361007534,1747199438436,-705.18,0.00010958,2]
[361007535,1747199438445,-237.9126829,0.00010958,2]
[361007536,1747199438454,-1869.13,0.00010958,2]
[361007537,1747199438463,-631.93,0.00010958,2]
[361007538,1747199438472,-400.0,0.00010958,2]
[361007539,1747199438482,-400.0,0.00010958,2]
[361007540,1747199438491,-400.0,0.00010958,2]
[361007541,1747199438500,-400.0,0.00010958,2]
[361007542,1747199438510,-1215.74,0.00010958,2]
[361007543,1747199438519,-400.0,0.00010958,2]
[361007544,1747199438528,-400.0,0.00010958,2]
[361007545,1747199438537,-457.16,0.00010958,2]
[361007546,1747199438547,-400.0,0.00010958,2]
[361007547,1747199438556,-896.05,0.00010958,2]
[361007548,1747199438566,-465.59,0.00010958,2]
[361007549,1747199438575,-400.0,0.00010958,2]
[361007550,1747199438584,-400.0,0.00010958,2]
[361007551,1747199438594,-1149.52,0.00010958,2]
[361007552,1747199438603,-363.34,0.00010958,2]
[361007553,1747199438613,-435.44,0.00010958,2]
[361007554,1747199438625,-1920.58,0.00010958,2]
[361007555,1747199438634,-400.0,0.00010958,2]
[361007556,1747199438644,-730.66,0.00010958,2]
[361007557,1747199438653,-1315.67,0.00010958,2]
[361007558,1747199438664,-400.0,0.00010958,2]
[361007559,1747199438674,-1068.26,0.00010958,2]
[361007560,1747199438684,-403.51636848,0.00010958,2]
[361007561,1747199438694,-400.0,0.00010958,2]
[361007562,1747199438704,-923.98,0.00010958,2]
[361007563,1747199438715,-750.83,0.00010958,2]
[361007564,1747199438724,-400.0,0.00010958,2]
[361007565,1747199438734,-400.0,0.00010958,2]
[361007566,1747199438743,-1331.52,0.00010958,2]
[361007567,1747199438752,-571.06251804,0.00010958,2]
[361007568,1747199438790,-508.49748196,0.00010958,2]
[361007569,1747199438800,-199.6287938,0.00010958,2]
[361007570,1747199438810,-400.0,0.00010958,2]
[361007571,1747199438820,-740.7,0.00010958,2]
[361007572,1747199438829,-472.16,0.00010958,2]
[361007573,1747199438839,-516.56,0.00010958,2]
[361007574,1747199438849,-3938.47,0.00010958,2]
[361007575,1747199438859,-413.06119146,0.00010958,2]
[361007576,1747199438868,-400.0,0.00010958,2]
[361007577,1747199438878,-400.0,0.00010958,2]
[361007578,1747199438887,-1812.5,0.00010958,2]
[361007579,1747199438897,-400.0,0.00010958,2]
[361007580,1747199438907,-1328.93,0.00010958,2]
[361007581,1747199438916,-247.13767186,0.00010958,2]
[361007582,1747199438926,-400.0,0.00010958,2]
[361007583,1747199438935,-403.80463425,0.00010958,2]
[361007584,1747199438945,-1160.56,0.00010958,2]
[361007585,1747199438954,-400.0,0.00010958,2]
[361007586,1747199438964,-639.31,0.00010958,2]
[361007587,1747199438974,-403.91946852,0.00010958,2]
[361007588,1747199438983,-592.17,0.00010958,2]
[361007589,1747199438993,-460.25,0.00010958,2]
[361007590,1747199439002,-400.0,0.00010958,2]
[361007591,1747199439012,-765.45,0.00010958,2]
[361007592,1747199439022,-400.0,0.00010958,2]
[361007593,1747199439031,-484.08,0.00010958,2]
[361007594,1747199439041,-410.29396295,0.00010958,2]
[361007595,1747199439051,-1357.97,0.00010958,2]
[361007596,1747199439061,-2214.55,0.00010958,2]
[361007597,1747199439241,-400.69811916,0.00010958,2]
[361007598,1747199439252,-501.98,0.00010958,2]
[361007599,1747199439261,-406.22520874,0.00010958,2]
[361007600,1747199439271,-775.62,0.00010958,2]
[361007601,1747199439280,-400.0,0.00010958,2]
[361007602,1747199439290,-1111.49,0.00010958,2]
[361007603,1747199439299,-496.40900181,0.00010958,2]
[361007604,1747199439309,-823.14,0.00010958,2]
[361007605,1747199439319,-414.94561827,0.00010958,2]
[361007606,1747199439328,-400.0,0.00010958,2]
[361007607,1747199439337,-659.56,0.00010958,2]
[361007608,1747199439347,-400.0,0.00010958,2]
[361007609,1747199439356,-574.89,0.00010958,2]
[361007610,1747199439365,-400.0,0.00010958,2]
[361007611,1747199439374,-646.97,0.00010958,2]
[361007612,1747199439384,-400.0,0.00010958,2]
[361007613,1747199439393,-400.0,0.00010958,2]
[361007614,1747199439402,-1894.26,0.00010958,2]
[361007615,1747199439413,-1402.76,0.00010958,2]
[361007616,1747199439422,-400.0,0.00010958,2]
[361007617,1747199439432,-371.70073108,0.00010958,2]
[361007618,1747199439441,-400.0,0.00010958,2]
[361007619,1747199439451,-1588.98,0.00010958,2]
[361007620,1747199439460,-536.96,0.00010958,2]
[361007621,1747199439470,-400.0,0.00010958,2]
[361007622,1747199439479,-400.0,0.00010958,2]
[361007623,1747199439489,-403.16314854,0.00010958,2]
[361007624,1747199439499,-400.0,0.00010958,2]
[361007625,1747199439508,-400.0,0.00010958,2]
[361007626,1747199439518,-422.55,0.00010958,2]
[361007627,1747199439528,-696.45,0.00010958,2]
[361007628,1747199439538,-400.0,0.00010958,2]
[361007629,1747199439548,-400.0,0.00010958,2]
[361007630,1747199439557,-471.26,0.00010958,2]
[361007633,1747199439567,-403.15738264,0.00010958,2]
[361007634,1747199439577,-402.97746406,0.00010958,2]
[361007635,1747199439586,-400.0,0.00010958,2]
[361007636,1747199439596,-400.0,0.00010958,2]
[361007637,1747199439605,-376.89637797,0.00010958,2]
[361007638,1747199439615,-1745.63,0.00010958,2]
[361007639,1747199439626,-400.0,0.00010958,2]
[361007640,1747199439636,-1147.44,0.00010958,2]
[361007641,1747199439646,-857.73,0.00010958,2]
[361007642,1747199439656,-401.29797962,0.00010958,2]
[361007643,1747199439667,-400.0,0.00010958,2]
[361007644,1747199439677,-400.0,0.00010958,2]
[361007645,1747199439687,-400.0,0.00010958,2]
[361007646,1747199439696,-400.0,0.00010958,2]
[361007647,1747199439706,-1263.98,0.00010958,2]
[361007648,1747199439716,-400.0,0.00010958,2]
[361007649,1747199439725,-400.0,0.00010958,2]
[361007650,1747199439735,-400.0,0.00010958,2]
[361007651,1747199439744,-1398.38,0.00010958,2]
[361007652,1747199439755,-484.54541871,0.00010958,2]
[361007653,1747199439764,-400.25753243,0.00010958,2]
[361007654,1747199439774,-400.0,0.00010958,2]
[361007655,1747199439783,-762.2,0.00010958,2]
[361007656,1747199439793,-1379.27,0.00010958,2]
[361007657,1747199439803,-464.5,0.00010958,2]
[361007658,1747199439812,-1759.66032006,0.00010958,2]
[361007667,1747199440310,-1687.19745197,0.00010958,2]
[361007668,1747199440328,-169.94222797,0.00010958,2]
[361007669,1747199440338,-359.10180013,0.00010958,2]
[361007670,1747199440347,-403.16050725,0.00010958,2]
[361007671,1747199440356,-405.49805671,0.00010958,2]
[361007672,1747199440366,-400.0,0.00010958,2]
[361007673,1747199440375,-403.49072244,0.00010958,2]
[361007674,1747199440385,-1624.74,0.00010958,2]
[361007675,1747199440394,-707.84,0.00010958,2]
[361007676,1747199440404,-400.0,0.00010958,2]
[361007677,1747199440413,-1588.41084986,0.00010958,2]
[361007678,1747199440456,-315.94,0.00010958,2]
[361007679,1747199440468,-204.26915014,0.00010958,2]
[361007680,1747199440477,-400.0,0.00010958,2]
[361007681,1747199440487,-823.45,0.00010958,2]
[361007682,1747199440497,-400.0,0.00010958,2]
[361007683,1747199440506,-247.92548986,0.00010958,2]
[361007684,1747199440518,-337.72451014,0.00010958,2]
[361007685,1747199440528,-268.29772115,0.00010958,2]
[361007686,1747199440539,-302.96824235,0.00010958,2]
[361007687,1747199440550,-1.8840365,0.00010958,2]
[361007688,1747199440559,-411.02,0.00010958,2]
[361007689,1747199440568,-400.0,0.00010958,2]
[361007690,1747199440578,-443.0,0.00010958,2]
[361007691,1747199440587,-1697.4,0.00010958,2]
[361007692,1747199440597,-550.42,0.00010958,2]
[361007693,1747199440606,-400.0,0.00010958,2]
[361007694,1747199440615,-400.0,0.00010958,2]
[361007695,1747199440630,-401.57544383,0.00010958,2]
[361007696,1747199440640,-299.28051968,0.00010958,2]
[361007702,1747199442470,-1147.0,0.00010893,2]
[361007703,1747199442480,-204.87948032,0.00010958,2]
[361007704,1747199442489,-400.0,0.00010958,2]
[361007705,1747199442499,-477.43051968,0.00010958,2]
[361007708,1747199442510,-213.54948032,0.00010958,2]
[361007710,1747199442520,-210.30589673,0.00010958,2]
[361007711,1747199442531,-189.69410327,0.00010958,2]
[361007712,1747199442540,-400.0,0.00010958,2]
[361007713,1747199442549,-459.39,0.00010958,2]
[361007715,1747199442558,-57.44316421,0.00010958,2]
[361007716,1747199442691,-342.55683579,0.00010958,2]
[361007717,1747199442701,-106.4332837,0.00010958,2]
[361007719,1747199442717,-293.93464538,0.00010958,2]
[361007720,1747199442726,-386.48594967,0.00010958,2]
[361007721,1747199442984,-356.6107557,0.00010958,2]
[361007722,1747199442995,-328.10329463,0.00010958,2]
[361007723,1747199443005,-71.74371607,0.00010958,2]
[361007724,1747199443016,-522.5151976,0.00010958,2]
[361007725,1747199443027,-535.0715157,0.00010958,2]
[361007726,1747199443052,-430.50957063,0.00010958,2]
[361007727,1747199443061,-551.53,0.00010958,2]
[361007728,1747199443070,-462.83,0.00010958,2]
[361007729,1747199443079,-898.76,0.00010958,2]
[361007730,1747199443088,-1588.15,0.00010958,2]
[361007731,1747199443097,-400.0,0.00010958,2]
[361007732,1747199443106,-400.0,0.00010958,2]
[361007733,1747199443116,-400.0,0.00010958,2]
[361007734,1747199443125,-400.0,0.00010958,2]
[361007735,1747199443135,-587.25,0.00010958,2]
[361007736,1747199443144,-951.57,0.00010958,2]
[361007737,1747199443153,-570.5,0.00010958,2]
[361007738,1747199443164,-400.0,0.00010958,2]
[361007739,1747199443174,-400.0,0.00010958,2]
[361007740,1747199443184,-400.0,0.00010958,2]
[361007741,1747199443194,-400.0,0.00010958,2]
[361007742,1747199443203,-1000.58,0.00010958,2]
[361007743,1747199443213,-427.85,0.00010958,2]
[361007744,1747199443222,-400.0,0.00010958,2]
[361007745,1747199443232,-400.0,0.00010958,2]
[361007746,1747199443242,-400.0,0.00010958,2]
[361007747,1747199443252,-408.2917425,0.00010958,2]
[361007748,1747199443261,-476.06640422,0.00010958,2]
[361007749,1747199443270,-400.0,0.00010958,2]
[361007750,1747199443280,-1979.84,0.00010958,2]
[361007751,1747199443289,-618.65,0.00010958,2]
[361007752,1747199443299,-484.03565297,0.00010958,2]
[361007753,1747199443312,-260.25434703,0.00010958,2]
[361007754,1747199443321,-400.0,0.00010958,2]
[361007755,1747199443331,-400.78207792,0.00010958,2]
[361007756,1747199443340,-580.88,0.00010958,2]
[361007757,1747199443349,-655.73,0.00010958,2]
[361007758,1747199443359,-400.0,0.00010958,2]
[361007759,1747199443368,-400.0,0.00010958,2]
[361007760,1747199443554,-948.35,0.00010958,2]
[361007761,1747199443568,-400.0,0.00010958,2]
[361007762,1747199443578,-2202.49,0.00010958,2]
[361007763,1747199443588,-400.0,0.00010958,2]
[361007764,1747199443598,-400.0,0.00010958,2]
[361007765,1747199443609,-400.0,0.00010958,2]
[361007766,1747199443619,-413.7814317,0.00010958,2]
[361007767,1747199443631,-908.63,0.00010958,2]
[361007768,1747199443642,-1837.62,0.00010958,2]
[361007769,1747199443652,-400.0,0.00010958,2]
[361007770,1747199443662,-400.0,0.00010958,2]
[361007771,1747199443672,-400.0,0.00010958,2]
[361007772,1747199443682,-400.0,0.00010958,2]
[361007773,1747199443691,-400.0,0.00010958,2]
[361007774,1747199443702,-400.0,0.00010958,2]
[361007775,1747199443712,-401.02999266,0.00010958,2]
[361007776,1747199443722,-400.0,0.00010958,2]
[361007777,1747199443731,-400.0,0.00010958,2]
[361007778,1747199443740,-400.0,0.00010958,2]
[361007779,1747199443750,-400.0,0.00010958,2]
[361007780,1747199443759,-400.0,0.00010958,2]
[361007781,1747199443769,-400.0,0.00010958,2]
[361007782,1747199443779,-489.99,0.00010958,2]
[361007783,1747199443788,-400.0,0.00010958,2]
[361007784,1747199443797,-400.0,0.00010958,2]
[361007785,1747199443807,-476.19,0.00010958,2]
[361007786,1747199443816,-400.0,0.00010958,2]
[361007787,1747199443825,-400.0,0.00010958,2]
[361007788,1747199443835,-576.91,0.00010958,2]
[361007789,1747199443846,-400.0,0.00010958,2]
[361007790,1747199443856,-400.0,0.00010958,2]
[361007791,1747199443867,-408.07653562,0.00010958,2]
[361007792,1747199443876,-1328.41,0.00010958,2]
[361007793,1747199443886,-3349.25,0.00010958,2]
[361007794,1747199443895,-760.23,0.00010958,2]
[361007795,1747199443906,-409.73,0.00010958,2]
[361007796,1747199443916,-400.0,0.00010958,2]
[361007797,1747199443925,-433.21116548,0.00010958,2]
[361007798,1747199443934,-400.0,0.00010958,2]
[361007799,1747199443944,-258.98999957,0.00010958,2]
[361007800,1747199443954,-400.0,0.00010958,2]
[361007801,1747199443963,-400.0,0.00010958,2]
[361007802,1747199443973,-400.0,0.00010958,2]
[361007803,1747199443982,-400.77697481,0.00010958,2]
[361007804,1747199443992,-733.41,0.00010958,2]
[361007805,1747199444002,-655.01,0.00010958,2]
[361007806,1747199444012,-1052.16,0.00010958,2]
[361007807,1747199444022,-500.0,0.00010958,2]
[361007808,1747199444032,-4639.47,0.00010958,2]
[361007809,1747199444041,-400.0,0.00010958,2]
[361007810,1747199444051,-400.0,0.00010958,2]
[361007811,1747199444060,-400.0,0.00010958,2]
[361007812,1747199444069,-483.55,0.00010958,2]
[361007813,1747199444079,-400.0,0.00010958,2]
[361007814,1747199444088,-400.0,0.00010958,2]
[361007815,1747199444098,-660.87,0.00010958,2]
[361007816,1747199444109,-447.27,0.00010958,2]
[361007817,1747199444118,-400.0,0.00010958,2]
[361007818,1747199444128,-525.14,0.00010958,2]
[361007819,1747199444139,-400.0,0.00010958,2]
[361007820,1747199444148,-400.0,0.00010958,2]
[361007821,1747199444157,-424.88186856,0.00010958,2]
[361007822,1747199444168,-400.0,0.00010958,2]
[361007823,1747199444178,-545.77,0.00010958,2]
[361007824,1747199444190,-400.0,0.00010958,2]
[361007825,1747199444200,-501.91807767,0.00010958,2]
[361007826,1747199444212,-400.0,0.00010958,2]
[361007827,1747199444221,-856.59,0.00010958,2]
[361007828,1747199444230,-400.0,0.00010958,2]
[361007829,1747199444239,-3060.38,0.00010958,2]
[361007830,1747199444248,-1736.6,0.00010958,2]
[361007831,1747199444258,-3929.14,0.00010958,2]
[361007832,1747199444267,-400.0,0.00010958,2]
[361007833,1747199444277,-400.0,0.00010958,2]
[361007834,1747199444287,-500.0,0.00010958,2]
[361007835,1747199444298,-400.0,0.00010958,2]
[361007836,1747199444308,-797.47,0.00010958,2]
[361007837,1747199444318,-400.0,0.00010958,2]
[361007838,1747199444328,-400.0,0.00010958,2]
[361007839,1747199444338,-400.0,0.00010958,2]
[361007840,1747199444347,-8567.22,0.00010958,2]
[361007841,1747199444356,-400.0,0.00010958,2]
[361007842,1747199444365,-178.76685919,0.00010958,2]
[361007843,1747199444374,-5215.55,0.00010958,2]
[361007844,1747199444383,-381.44,0.00010958,2]
[361007845,1747199444393,-404.3140882,0.00010958,2]
[361007846,1747199444402,-457.93878387,0.00010958,2]
[361007847,1747199444417,-400.0,0.00010958,2]
[361007848,1747199444427,-2167.17,0.00010958,2]
[361007849,1747199444436,-1268.61,0.00010958,2]
[361007850,1747199444446,-400.0,0.00010958,2]
[361007851,1747199444455,-1000.0,0.00010958,2]
[361007852,1747199444464,-400.0,0.00010958,2]
[361007853,1747199444474,-842.06,0.00010958,2]
[361007854,1747199444484,-400.0,0.00010958,2]
[361007855,1747199444493,-410.03589641,0.00010958,2]
[361007856,1747199444502,-400.0,0.00010958,2]
[361007857,1747199444512,-403.46620209,0.00010958,2]
[361007858,1747199444521,-400.0,0.00010958,2]
[361007859,1747199444531,-516.47363816,0.00010958,2]
[361007860,1747199444541,-402.75150569,0.00010958,2]
[361007861,1747199444551,-400.0,0.00010958,2]
[361007862,1747199444560,-400.0,0.00010958,2]
[361007863,1747199444570,-522.75367661,0.00010958,2]
[361007864,1747199444580,-753.1,0.00010958,2]
[361007865,1747199444590,-400.0,0.00010958,2]
[361007866,1747199444599,-400.0,0.00010958,2]
[361007867,1747199444608,-9827.97,0.00010958,2]
[361007868,1747199444618,-400.0,0.00010958,2]
[361007869,1747199444633,-4954.55,0.00010958,2]
[361007870,1747199444643,-413.14,0.00010958,2]
[361007871,1747199444653,-400.0,0.00010958,2]
[361007872,1747199444663,-400.0,0.00010958,2]
[361007873,1747199444673,-759.52,0.00010958,2]
[361007874,1747199444683,-400.0,0.00010958,2]
[361007875,1747199444693,-400.0,0.00010958,2]
[361007876,1747199444703,-400.0,0.00010958,2]
[361007877,1747199444713,-400.0,0.00010958,2]
[361007878,1747199444722,-413.33,0.00010958,2]
[361007879,1747199444733,-993.86,0.00010958,2]
[361007880,1747199444742,-400.0,0.00010958,2]
[361007881,1747199444752,-400.0,0.00010958,2]
[361007882,1747199444763,-400.0,0.00010958,2]
[361007883,1747199444773,-400.0,0.00010958,2]